bitfinex/quotes_ETHUSD_20220123
["timestamp","ask_amount","ask_price","bid_price","bid_amount"]
[1642906386698,0.00113685,2417.3,2416.4,0.00397896]
[1642906386983,0.00341054,2417.7,2416.4,0.00397896]
[1642906387182,0.00341054,2417.7,2417.2,1.30297919]
[1642906387384,0.00284212,2417.6,2417.2,1.30297919]
[1642906387783,0.00227369,2417.5,2417.2,1.30297919]
[1642906388186,0.00170527,2417.4,2417.2,1.30297919]
[1642906388383,0.00170527,2417.4,2416.4,3.33667896]
[1642906388585,0.00113685,2417.3,2416.4,0.00397896]
[1642906388781,0.00113685,2417.3,2416.5,0.00341054]
[1642906388988,0.00284212,2417.6,2416.4,0.00397896]
[1642906389486,1.32847257,2417.7,2416.4,0.00397896]
[1642906389487,0.00227369,2417.5,2416.4,0.00397896]
[1642906389683,0.00227369,2417.5,2416.8,1.16926223]
[1642906389883,0.00170527,2417.4,2417.0,1.41701068]
[1642906390284,0.00113685,2417.3,2417.2,1.05274893]
[1642906391132,0.00113685,2417.3,2417.0,1.41701068]
[1642906392933,1.23407567,2417.4,2417.0,1.41701068]
[1642906393133,1.23407567,2417.4,2417.1,0.00113685]
[1642906393933,1.23407567,2417.4,2417.0,0.81814753]
[1642906394211,1.53407567,2417.4,2416.3,0.01266734]
[1642906394393,0.01219643,2417.2,2415.7,0.497592]
[1642906394592,0.01299418,2416.6,2416.4,0.00397896]
[1642906394894,0.01608774,2416.4,2415.8,0.00341054]
[1642906395088,3.59884,2416.5,2415.7,0.497592]
[1642906395089,2.85,2416.2,2415.7,0.497592]
[1642906395289,1.33866655,2416.0,2415.7,0.497592]
[1642906395488,1.33866655,2416.0,2414.8,0.02]
[1642906395489,2.85,2415.7,2414.8,0.02]
[1642906395692,0.03572437,2415.4,2414.8,0.02]
[1642906395891,2.85,2415.1,2414.8,0.02]
[1642906396087,0.55565388,2415.0,2414.8,0.02]
[1642906396287,3.05639,2414.9,2414.5,0.02]
[1642906396489,1.33412281,2414.5,2413.9,1.56264272]
[1642906396688,1.33412281,2414.5,2413.7,1.40816373]
[1642906396689,0.34886,2414.4,2413.7,1.40816373]
[1642906397087,0.04886,2414.4,2413.8,0.00625265]
[1642906397291,0.492,2414.5,2413.8,0.00625265]
[1642906397292,1.0368965,2414.6,2413.8,0.00625265]
[1642906397492,3.24868417,2415.0,2413.8,0.00625265]
[1642906397493,0.13819997,2415.0,2413.8,0.00625265]
[1642906397696,1.0022737,2415.3,2413.9,3.52392341]
[1642906397697,0.0022737,2415.3,2413.9,3.52392341]
[1642906397934,0.0022737,2415.3,2414.5,1.38402817]
[1642906398135,0.00170528,2415.2,2414.5,1.38402817]
[1642906398334,0.00170528,2415.2,2415.1,2.43254795]
[1642906398535,0.04668,2416.0,2415.1,2.43254795]
[1642906398735,1.0363678,2415.9,2415.1,2.43254795]
[1642906398935,0.00454739,2415.7,2414.6,0.00170527]
[1642906399137,0.492,2415.6,2414.6,0.00170527]
[1642906399336,0.37199,2415.5,2414.5,0.00227369]
[1642906399537,0.37199,2415.5,2413.7,0.29259668]
[1642906399538,0.012547,2415.2,2414.3,0.00341054]
[1642906399737,3.1108867,2415.0,2413.9,0.00568423]
[1642906399938,1.19531046,2414.8,2414.3,1.31824903]
[1642906400143,0.6576,2414.7,2414.3,1.31824903]
[1642906400340,0.492,2414.7,2414.4,0.00284211]
[1642906400543,3.11209685,2415.1,2414.4,0.00284211]
[1642906400544,0.16673685,2415.1,2414.4,0.00284211]
[1642906400748,0.00113685,2415.1,2414.4,2.17518195]
[1642906400942,0.00113685,2415.1,2414.4,2.18775153]
[1642906401139,0.00113685,2415.1,2414.5,1.73389244]
[1642906401339,2.34036425,2416.0,2415.4,1.52950358]
[1642906401541,0.1655,2415.9,2415.4,2.65323503]
[1642906401793,0.00397897,2415.8,2415.4,1.12373145]
[1642906402096,0.00341054,2415.7,2415.4,1.12373145]
[1642906402489,2.7297214,2416.6,2415.4,1.12373145]
[1642906402490,0.00284212,2415.6,2415.4,1.12373145]
[1642906402892,0.0022737,2415.5,2415.4,4.62085742]
[1642906403893,0.0022737,2415.5,2415.4,2.52085742]
[1642906404296,0.0022737,2415.5,2415.1,24.0322737]
[1642906404297,0.0022737,2415.5,2415.1,0.0022737]
[1642906404596,1.37774612,2416.2,2415.1,0.0022737]
[1642906404597,0.00170527,2415.4,2415.1,0.0022737]
[1642906404899,0.00113685,2415.3,2415.1,0.0022737]
[1642906405098,0.00113685,2415.3,2414.6,0.00284212]
[1642906405099,3.52053384,2415.2,2414.6,0.00284212]
[1642906405305,4.18407156,2414.7,2414.6,0.00284212]
[1642906405545,4.18407156,2414.7,2413.9,0.00682108]
[1642906405546,5.64806156,2414.7,2413.9,0.00682108]
[1642906405744,0.1656,2414.6,2413.9,0.00682108]
[1642906405943,0.1656,2414.6,2413.6,0.02]
[1642906405944,3.342,2414.5,2413.6,0.01682108]
[1642906406147,3.1113055,2414.3,2413.6,0.01682108]
[1642906406348,0.86399,2414.2,2413.6,0.01682108]
[1642906406545,1.46683212,2414.2,2413.6,0.01682108]
[1642906406746,2.0764737,2414.1,2413.6,0.01682108]
[1642906406949,2.04982924,2414.1,2413.6,0.01682108]
[1642906407146,2.04982924,2414.1,2413.5,0.02397896]
[1642906407147,3.15170527,2414.0,2413.5,0.02397896]
[1642906407444,0.65873685,2413.9,2413.5,0.02397896]
[1642906407647,1.65873685,2413.9,2413.5,0.02397896]
[1642906407849,1.65873685,2413.9,2412.5,2.49819081]
[1642906407850,1.85,2413.8,2412.5,2.49819081]
[1642906408146,1.85,2413.8,2412.1,1.74049991]
[1642906408147,2.66816731,2413.7,2412.6,1.65935013]
[1642906408345,2.66816731,2413.7,2412.6,0.1500775]
[1642906408349,2.96816731,2413.7,2412.6,0.1500775]
[1642906408546,1.792,2413.6,2413.0,0.00284212]
[1642906408745,1.0373496,2413.4,2413.0,0.00284212]
[1642906408947,0.492,2413.3,2413.0,0.00284212]
[1642906409383,1.52942,2413.3,2413.0,0.00284212]
[1642906409586,2.1,2412.9,2411.9,0.02]
[1642906409787,3.39839,2412.9,2411.9,0.02]
[1642906409983,1.2032654,2412.8,2411.9,0.02]
[1642906410184,1.2032654,2412.8,2412.0,3.52641051]
[1642906410185,0.00170527,2412.8,2412.0,3.52641051]
[1642906410393,0.00113685,2412.7,2412.0,3.69505263]
[1642906410583,0.13819997,2413.2,2412.7,0.0022737]
[1642906410985,0.00227369,2413.1,2412.7,0.0022737]
[1642906411188,0.00227369,2413.1,2412.9,1.10791009]
[1642906411488,2.0742122,2414.1,2412.9,1.10791009]
[1642906411489,0.00170527,2413.0,2412.9,1.10791009]
[1642906413435,2.0742122,2414.1,2413.0,2.85306333]
[1642906413934,0.00568423,2414.0,2413.9,1.16296421]
[1642906414735,0.00568423,2414.0,2413.9,2.76296421]
[1642906414935,0.00568423,2414.0,2413.1,0.1656]
[1642906415139,0.00568423,2414.0,2413.0,0.00306333]
[1642906415140,0.6576,2413.9,2413.0,0.00306333]
[1642906415337,0.26984816,2413.9,2413.0,0.00306333]
[1642906415540,0.00454739,2413.8,2413.2,1.32525298]
[1642906415736,0.00454739,2413.8,2413.0,0.00306333]
[1642906415936,1.20685166,2413.7,2413.0,0.00306333]
[1642906416138,1.04125166,2413.7,2413.0,0.00306333]
[1642906416339,0.00341054,2413.6,2413.0,0.00306333]
[1642906416537,0.00341054,2413.6,2413.1,1.35608979]
[1642906416786,0.00284212,2413.5,2413.1,1.35608979]
[1642906417185,0.00227369,2413.4,2413.1,1.35608979]
[1642906417584,0.00170527,2413.3,2413.1,1.35608979]
[1642906417788,0.04980527,2414.0,2413.1,2.48655887]
[1642906417985,0.0618352,2414.0,2413.1,2.48655887]
[1642906418187,0.06581416,2414.0,2413.1,2.48655887]
[1642906418987,0.05378423,2414.0,2413.9,0.91478451]
[1642906419590,0.05378423,2414.0,2413.0,0.00306333]
[1642906419887,0.00341054,2413.9,2413.1,0.00113685]
[1642906420289,0.04980527,2414.0,2413.1,0.00113685]
[1642906420290,0.20923212,2413.8,2413.1,0.00113685]
[1642906420536,0.20923212,2413.8,2413.3,1.48355166]
[1642906420537,2.0744596,2413.7,2413.3,1.48355166]
[1642906420740,2.56873329,2413.7,2413.3,1.48355166]
[1642906420936,0.00170527,2413.6,2413.3,1.48355166]
[1642906421136,0.492,2413.5,2413.1,0.00113685]
[1642906421440,3.0744596,2413.7,2413.1,0.00113685]
[1642906421441,0.10639761,2413.7,2413.1,0.00113685]
[1642906421636,0.492,2413.6,2413.1,0.0022737]
[1642906422237,0.792,2413.6,2413.1,0.0022737]
[1642906422437,0.492,2413.6,2413.1,0.0022737]
[1642906422636,0.792,2413.6,2413.1,0.0022737]
[1642906422837,0.492,2413.6,2413.1,0.0022737]
[1642906423038,0.492,2413.6,2413.1,1.11411106]
[1642906423244,0.00113684,2413.7,2413.1,1.11411106]
[1642906423442,0.00113684,2413.7,2413.2,0.00170527]
[1642906425090,0.492,2413.6,2413.2,0.00170527]
[1642906425291,0.01227846,2413.5,2413.1,0.0022737]
[1642906425488,1.9,2413.3,2412.7,0.0022737]
[1642906425689,0.492,2413.2,2412.7,0.0022737]
[1642906425893,0.492,2413.2,2412.8,1.4588058]
[1642906426090,0.20639,2413.1,2412.8,0.00170527]
[1642906426290,2.342,2413.0,2412.9,0.00113684]
[1642906426688,1.792,2413.0,2411.9,0.02]
[1642906426888,0.792,2413.0,2411.9,0.02]
[1642906427088,0.792,2413.0,2412.6,1.3286574]
[1642906427390,0.792,2413.0,2412.7,0.00113685]
[1642906428636,0.792,2413.0,2412.6,1.3286574]
[1642906428837,0.00113685,2412.9,2412.6,1.3286574]
[1642906429043,0.49313685,2412.9,2412.6,1.3286574]
[1642906429638,0.49313685,2412.9,2411.9,0.02]
[1642906430139,0.49313685,2412.9,2412.0,0.00397897]
[1642906430541,1.49313685,2412.9,2412.0,0.00397897]
[1642906430739,0.49313685,2412.9,2412.0,0.00397897]
[1642906430956,1.49313685,2412.9,2412.5,0.9422169]
[1642906431796,1.49313685,2412.9,2412.0,0.00397897]
[1642906431797,3.11346,2412.7,2412.0,0.00397897]
[1642906431997,3.8119187,2412.6,2412.0,0.00397897]
[1642906432195,3.8119187,2412.6,2410.9,5.129]
[1642906432196,1.03801,2412.1,2410.9,5.129]
[1642906432395,0.492,2412.0,2411.0,3.52783145]
[1642906432594,0.792,2412.0,2411.0,3.53351568]
[1642906432794,0.792,2412.0,2411.4,1.43151944]
[1642906432992,0.433546,2411.9,2411.4,1.43151944]
[1642906433194,0.925546,2411.9,2411.4,0.13436155]
[1642906433394,0.00170527,2411.8,2411.4,0.13436155]
[1642906433599,0.492,2412.2,2411.8,0.00341054]
[1642906433996,0.49427369,2412.2,2411.8,0.00341054]
[1642906435296,0.49427369,2412.2,2411.5,0.00170527]
[1642906435297,1.95,2412.1,2411.5,0.00170527]
[1642906435540,0.99839,2412.0,2411.5,0.00170527]
[1642906435739,1.03813,2411.8,2411.1,0.00397897]
[1642906435940,0.492,2411.7,2411.2,0.00341054]
[1642906436145,0.492,2411.7,2411.0,3.52800396]
[1642906436146,0.492,2411.7,2411.0,0.00454739]
[1642906436347,0.492,2411.7,2411.2,1.47075902]
[1642906436741,0.492,2411.7,2410.7,0.02]
[1642906436742,0.492,2411.7,2411.3,0.00284212]
[1642906437140,0.492,2411.7,2410.8,3.53386902]
[1642906437341,0.492,2411.7,2410.9,3.53330059]
[1642906437542,0.492,2411.7,2411.0,3.52818478]
[1642906437742,0.492,2411.7,2411.0,4.99512542]
[1642906437943,1.492,2411.7,2411.1,3.53216375]
[1642906438143,0.492,2411.7,2411.1,3.53216375]
[1642906438342,2.78306876,2411.7,2411.2,0.00341054]
[1642906438543,1.492,2411.7,2411.2,0.00341054]
[1642906438947,0.20639,2411.6,2410.8,0.00568424]
[1642906439196,0.20639,2411.6,2410.9,0.00511581]
[1642906439197,3.60728,2411.5,2410.9,0.00511581]
[1642906439388,1.03853,2411.0,2410.4,1.26282372]
[1642906439589,1.53053,2411.0,2410.8,1.30332608]
[1642906439788,1.53053,2411.0,2410.5,0.00170527]
[1642906440187,0.492,2411.0,2410.5,0.00170527]
[1642906440388,0.492,2411.0,2410.5,3.53051545]
[1642906440593,0.00341054,2411.4,2410.6,3.52881018]
[1642906440788,0.00341054,2411.4,2410.8,1.10766209]
[1642906440988,0.00284212,2411.3,2410.9,3.52881018]
[1642906441392,0.04796734,2411.8,2410.6,0.00113684]
[1642906441588,0.53996734,2411.8,2410.6,0.00113684]
[1642906441791,0.00170527,2411.5,2410.4,0.00454739]
[1642906441993,0.00170527,2411.5,2410.4,2.08807102]
[1642906442190,0.27639994,2412.0,2410.5,3.52838238]
[1642906442191,0.00113684,2411.4,2410.5,3.52838238]
[1642906442392,0.00113684,2411.4,2410.5,3.53236135]
[1642906442590,0.49597896,2411.9,2410.6,0.00341054]
[1642906442790,0.49597896,2411.9,2410.6,3.53179292]
[1642906443039,0.49597896,2411.9,2411.4,1.54489467]
[1642906443040,0.00341054,2411.8,2411.4,1.54489467]
[1642906443435,0.27639994,2412.0,2411.4,1.54489467]
[1642906443436,0.00284211,2411.7,2411.4,1.54489467]
[1642906443837,0.00227369,2411.6,2411.4,1.54489467]
[1642906444238,0.00397896,2411.9,2411.4,1.54489467]
[1642906444437,0.00397896,2411.9,2411.8,1.54647209]
[1642906444639,0.00341054,2411.8,2410.9,8.90620267]
[1642906444840,0.00397896,2411.9,2411.0,3.52801552]
[1642906445039,0.00284211,2411.7,2411.1,0.1658]
[1642906445238,1.492,2412.6,2411.2,3.52801552]
[1642906445239,0.00341054,2411.8,2411.2,3.52801552]
[1642906445438,0.00227369,2411.6,2411.0,3.52915237]
[1642906445638,0.00284211,2411.7,2411.0,3.52915237]
[1642906445837,1.43825076,2412.5,2411.1,1.53816921]
[1642906445838,1.44564026,2412.5,2411.1,1.53816921]
[1642906446037,0.492,2412.6,2411.6,1.42278354]
[1642906446238,1.03786,2412.4,2411.6,1.42278354]
[1642906446438,1.03786,2412.4,2411.0,0.00113685]
[1642906446736,1.03786,2412.4,2411.6,0.00151737]
[1642906446923,1.33346659,2412.3,2411.0,3.48058055]
[1642906447122,1.0073895,2412.3,2411.0,3.48209792]
[1642906447323,0.00682108,2412.2,2411.0,3.48209792]
[1642906447626,0.00625266,2412.1,2411.0,3.48209792]
[1642906448023,0.00568423,2412.0,2411.0,3.48209792]
[1642906448423,0.00511581,2411.9,2411.0,3.48209792]
[1642906448627,0.00511581,2411.9,2411.5,1.13477617]
[1642906448827,0.00454739,2411.8,2411.5,1.13629365]
[1642906449231,0.00397896,2411.7,2411.5,1.13629365]
[1642906449630,0.00341054,2411.6,2411.5,1.13629365]
[1642906449830,0.13819997,2412.5,2411.7,0.00852634]
[1642906450028,0.13819997,2412.5,2411.7,0.01004384]
[1642906450228,0.00454739,2412.4,2411.7,0.01004384]
[1642906450738,0.00397896,2412.3,2412.0,1.32614997]
[1642906450936,0.00397896,2412.3,2412.0,1.32766747]
[1642906451140,0.00341054,2412.2,2412.0,1.32766747]
[1642906451443,0.592,2412.9,2412.0,1.32766747]
[1642906451444,0.00284212,2412.1,2412.0,1.32766747]
[1642906452437,0.00284212,2412.1,2412.0,3.02766747]
[1642906452637,0.00284212,2412.1,2412.0,3.02766753]
[1642906454292,0.00284212,2412.1,2412.0,4.47766753]
[1642906455090,0.00284212,2412.1,2412.0,28.50766762]
[1642906455491,0.00284212,2412.1,2412.0,3.32766762]
[1642906459941,0.00284212,2412.1,2412.0,1.32766762]
[1642906460341,0.00284212,2412.1,2412.0,0.00151784]
[1642906461541,1.33539786,2412.3,2412.2,0.00568424]
[1642906461788,1.19136682,2412.7,2412.2,0.00720208]
[1642906461789,0.492,2412.6,2412.2,0.00720208]
[1642906461986,1.0378,2412.5,2412.2,0.00720208]
[1642906462192,0.166103,2412.4,2412.2,0.00720208]
[1642906462392,0.16780827,2412.4,2412.2,0.00720208]
[1642906462592,0.00113684,2412.3,2412.2,0.00720208]
[1642906463789,0.00113684,2412.3,2411.7,0.00852634]
[1642906463790,0.50577534,2412.3,2411.7,0.00852634]
[1642906464191,0.50577534,2412.3,2411.8,0.00170527]
[1642906464690,0.80577534,2412.3,2411.8,0.00170527]
[1642906465097,1.09889207,2411.9,2411.8,0.00170527]
[1642906465439,1.09889207,2411.9,2411.7,0.00852634]
[1642906465440,1.59089207,2411.9,2411.7,0.00852634]
[1642906466242,1.75703407,2411.9,2411.7,0.00852634]
[1642906466441,2.05703407,2411.9,2411.7,0.00852634]
[1642906466643,2.89089207,2411.9,2411.7,0.00852634]
[1642906466841,3.19089207,2411.9,2410.9,2.39784527]
[1642906467044,3.19089207,2411.9,2411.0,3.52857135]
[1642906467243,3.19089207,2411.9,2411.0,3.53311874]
[1642906467447,4.22906207,2411.9,2411.0,3.53311874]
[1642906467644,3.13017,2411.9,2411.0,3.53311874]
[1642906468445,1.492,2411.9,2411.0,3.53311874]
[1642906468645,0.492,2411.9,2411.4,1.21254879]
[1642906469046,0.492,2411.9,2411.5,0.00170527]
[1642906469887,0.492,2411.9,2411.1,0.00397897]
[1642906470190,0.658142,2411.9,2410.8,0.00568424]
[1642906470387,0.658142,2411.9,2411.0,1.50142795]
[1642906470587,0.658142,2411.9,2411.1,3.52826357]
[1642906470786,0.658142,2411.9,2411.1,3.53224254]
[1642906470988,0.658142,2411.9,2411.2,0.00341054]
[1642906472389,1.658142,2411.9,2411.2,0.00341054]
[1642906472587,1.658142,2411.9,2411.2,3.53167411]
[1642906472588,0.658142,2411.9,2411.2,3.53167411]
[1642906472794,0.166142,2411.9,2411.3,8.94429757]
[1642906473043,0.166142,2411.9,2411.4,6.63202626]
[1642906473237,4.2e-05,2411.9,2411.5,6.41090206]
[1642906473439,0.00113684,2412.3,2411.6,3.54050664]
[1642906473638,0.00113684,2412.3,2411.7,6.40310282]
[1642906473937,0.00227369,2412.2,2411.8,3.52826357]
[1642906474137,0.00227369,2412.2,2411.9,1.36483999]
[1642906474339,0.00170527,2412.1,2412.0,3.52826357]
[1642906474736,0.00170527,2412.1,2411.9,1.36483999]
[1642906475137,0.00113684,2412.0,2411.9,1.36483999]
[1642906475342,0.00113684,2412.0,2411.9,4.89234066]
[1642906476898,0.00113684,2412.0,2411.7,0.4658]
[1642906476899,0.00113684,2412.0,2411.7,0.1658]
[1642906477100,0.01287863,2411.9,2411.6,0.00113685]
[1642906477397,0.00113684,2412.0,2411.1,3.53219983]
[1642906477797,0.00113684,2412.0,2411.2,3.5316314]
[1642906478003,0.00113684,2412.0,2411.5,1.56086451]
[1642906478198,0.13819997,2412.9,2411.7,2.85]
[1642906478403,7.48,2413.5,2411.8,3.69402086]
[1642906478600,0.00454739,2412.8,2412.0,0.01247544]
[1642906478800,0.00454739,2412.8,2412.1,3.69402086]
[1642906479000,7.48,2413.5,2412.2,3.52822086]
[1642906479001,0.00397897,2412.7,2412.2,3.52822086]
[1642906479198,0.00397897,2412.7,2412.0,0.4656]
[1642906479398,0.01297662,2413.3,2412.2,1.13599268]
[1642906479399,0.00341055,2412.6,2412.2,1.13599268]
[1642906479602,0.00341055,2412.6,2412.3,5.63344864]
[1642906479799,0.00284212,2412.5,2412.3,2.10635108]
[1642906480001,0.00284212,2412.5,2412.2,1.30179268]
[1642906480202,0.01247565,2412.7,2412.2,1.13599268]
[1642906480203,0.0022737,2412.4,2412.2,1.13599268]
[1642906480640,0.00170527,2412.3,2412.2,1.13599268]
[1642906481737,0.332165,2412.4,2412.2,1.13599268]
[1642906482135,0.166084,2412.4,2412.2,1.13599268]
[1642906485589,0.166084,2412.4,2412.3,3.52705516]
[1642906486189,0.166084,2412.4,2412.2,1.13599268]
[1642906487190,0.01625199,2412.9,2412.2,1.13599268]
[1642906487390,0.492,2412.8,2411.8,0.00113684]
[1642906487590,0.49484212,2412.8,2411.8,0.00113684]
[1642906487791,0.0022737,2412.7,2411.8,0.00284211]
[1642906488046,0.4942737,2412.7,2411.7,0.00341054]
[1642906488246,0.00170528,2412.6,2411.7,0.00341054]
[1642906488448,0.00170528,2412.6,2412.0,1.15295736]
[1642906488646,0.00113685,2412.5,2412.0,1.15295736]
[1642906488845,0.00113685,2412.5,2412.4,1.08750986]
[1642906489047,0.00170528,2412.6,2412.4,1.08750986]
[1642906489349,0.00113685,2412.5,2412.4,1.08750986]
[1642906490846,0.00113685,2412.5,2411.8,1.19634211]
[1642906491053,0.00113685,2412.5,2411.9,3.52741454]
[1642906491349,0.00113685,2412.5,2412.0,0.00170527]
[1642906492392,0.00113685,2412.5,2412.3,1.4975254]
[1642906494295,0.00113685,2412.5,2412.0,0.00170527]
[1642906494695,0.00113685,2412.5,2411.9,3.52967737]
[1642906495095,0.00113685,2412.5,2412.0,0.00170527]
[1642906495296,0.00113685,2412.5,2412.2,1.28442178]
[1642906497639,0.16721985,2412.5,2412.2,1.28442178]
[1642906498241,0.16721985,2412.5,2412.0,0.00170527]
[1642906498642,0.16721985,2412.5,2411.9,3.52978672]
[1642906498844,0.16721985,2412.5,2412.0,0.00170527]
[1642906499289,0.16721985,2412.5,2412.3,1.45011262]
[1642906501498,0.16721985,2412.5,2412.0,0.00170527]
[1642906501794,0.16721985,2412.5,2411.6,3.5316141]
[1642906502191,0.16721985,2412.5,2411.7,0.00341054]
[1642906502594,0.20639,2412.4,2411.7,0.00341054]
[1642906502793,0.5045562,2412.3,2411.7,0.00231789]
[1642906503046,24.03,2412.1,2411.3,0.00459158]
[1642906503239,3.0369234,2412.2,2411.4,0.00402316]
[1642906503240,0.492,2412.0,2411.4,0.00402316]
[1642906503439,0.492,2411.9,2410.9,3.53527939]
[1642906503640,0.492,2411.9,2411.2,1.23232824]
[1642906504044,0.492,2411.9,2411.3,0.00459158]
[1642906504045,0.792,2411.9,2411.3,0.00459158]
[1642906504245,1.42051314,2411.8,2411.3,0.00459158]
[1642906504444,4.58666,2411.7,2410.7,3.52904647]
[1642906504643,4.58666,2411.7,2410.8,3.52904647]
[1642906504644,1.0,2411.6,2410.8,3.52904647]
[1642906504842,0.492,2411.5,2410.7,0.00341054]
[1642906505041,0.49313685,2411.5,2410.9,0.00227369]
[1642906505241,0.49313685,2411.5,2410.9,1.35634902]
[1642906505443,0.49313685,2411.5,2411.3,1.16850429]
[1642906506042,0.49313685,2411.5,2411.0,0.00170527]
[1642906506443,0.49313685,2411.5,2410.6,3.52885871]
[1642906506444,0.49313685,2411.5,2410.6,3.53283767]
[1642906507395,0.49313685,2411.5,2411.0,1.33204681]
[1642906507594,0.49313685,2411.5,2410.4,1.56086451]
[1642906507595,2.85,2411.1,2410.4,1.56086451]
[1642906507797,3.8887,2410.9,2409.5,0.02]
[1642906507996,0.02447998,2410.6,2409.3,0.14065374]
[1642906508193,2.35,2410.7,2409.2,3.9308]
[1642906508194,0.01227988,2410.5,2409.8,0.00454739]
[1642906508393,0.492,2410.4,2409.8,0.00454739]
[1642906508595,0.14038282,2410.4,2409.5,1.26335581]
[1642906508899,0.14038282,2410.4,2409.6,0.00568424]
[1642906509300,3.78503684,2410.8,2409.7,0.1659]
[1642906509301,0.92695313,2410.8,2409.7,0.1659]
[1642906509595,0.92695313,2410.8,2409.6,0.17148424]
[1642906509797,0.92695313,2410.8,2409.5,1.13484005]
[1642906509994,0.92695313,2410.8,2410.4,1.4020519]
[1642906510194,0.00625266,2410.7,2409.6,1.1986]
[1642906510644,0.00568424,2410.6,2409.6,1.1986]
[1642906511044,0.1658,2410.7,2409.6,1.1986]
[1642906511045,0.00511581,2410.5,2409.6,1.1986]
[1642906511244,0.00511581,2410.5,2410.1,1.13851502]
[1642906511446,0.1658,2410.7,2410.1,1.13851502]
[1642906511447,0.00454739,2410.4,2410.1,1.13851502]
[1642906511747,0.00397897,2410.3,2409.2,0.1858]
[1642906511956,0.00397897,2410.3,2409.2,0.02]
[1642906512145,1.03881,2410.4,2409.2,0.02]
[1642906512146,0.00341054,2410.2,2409.3,0.00170527]
[1642906512348,0.00341054,2410.2,2409.3,0.16750527]
[1642906512547,0.00284212,2410.1,2409.3,0.16750527]
[1642906512745,0.00284212,2410.1,2409.4,1.53078518]
[1642906512945,0.0022737,2410.0,2409.4,0.00113685]
[1642906513146,0.0022737,2410.0,2409.5,1.37226932]
[1642906513347,1.77651629,2410.8,2409.5,1.37226932]
[1642906513348,0.00170527,2409.9,2409.5,1.37226932]
[1642906513748,1.77651629,2410.8,2410.0,0.00529473]
[1642906514201,0.17034739,2410.7,2410.0,0.00529473]
[1642906514390,0.00454739,2410.7,2410.2,1.09865056]
[1642906514696,0.00397897,2410.6,2410.2,1.09865056]
[1642906515192,0.00341054,2410.5,2410.2,1.09865056]
[1642906515595,0.43381629,2410.8,2410.2,1.09865056]
[1642906515596,0.00284212,2410.4,2410.3,2.15117027]
[1642906515794,0.00284212,2410.4,2410.2,1.39865056]
[1642906515994,0.00284212,2410.4,2410.2,1.09865056]
[1642906516192,1.05052033,2411.4,2410.2,1.09865056]
[1642906516193,0.0022737,2410.3,2410.2,1.09865056]
[1642906516592,0.1658,2411.3,2410.3,2.5545474]
[1642906516794,0.43368759,2411.2,2410.3,2.5545474]
[1642906516992,0.16618,2410.7,2410.3,2.5545474]
[1642906517394,0.43368759,2411.2,2410.3,0.0045474]
[1642906517395,0.00170527,2410.6,2410.3,0.0045474]
[1642906517794,0.1658,2411.1,2410.3,0.0045474]
[1642906517795,0.00113684,2410.5,2410.3,0.0045474]
[1642906518244,0.1658,2411.1,2410.3,0.0045474]
[1642906518245,0.00397896,2411.0,2410.3,0.0045474]
[1642906518446,0.1658,2410.9,2410.3,0.0045474]
[1642906518645,0.16921054,2410.9,2410.3,0.0045474]
[1642906518844,0.00284211,2410.8,2410.3,0.0045474]
[1642906519245,0.00227369,2410.7,2410.3,0.0045474]
[1642906519645,0.1658,2411.3,2410.3,0.0045474]
[1642906519646,0.00170527,2410.6,2410.3,0.0045474]
[1642906520052,0.00113684,2410.5,2410.3,0.0045474]
[1642906520446,0.1658,2411.5,2410.3,0.0045474]
[1642906520447,0.00625265,2411.4,2411.3,1.49286226]
[1642906520648,0.00625265,2411.4,2410.4,7.1619]
[1642906520848,0.166174,2410.8,2410.4,3.2181]
[1642906521250,0.00227369,2410.7,2410.4,3.2181]
[1642906521450,0.00227369,2410.7,2410.3,2.18519088]
[1642906521707,0.00170527,2410.6,2410.3,0.0045474]
[1642906522094,0.00113684,2410.5,2410.3,0.0045474]
[1642906522496,1.9647782,2410.4,2409.4,3.377]
[1642906522892,0.00170527,2410.3,2409.5,0.00284212]
[1642906523092,0.1658,2410.2,2409.5,0.00284212]
[1642906523293,0.1658,2410.2,2410.0,1.2689876]
[1642906523294,0.00113684,2410.2,2410.0,1.2689876]
[1642906524398,0.00113684,2410.2,2409.5,0.00284212]
[1642906525544,0.00113684,2410.2,2410.0,1.08539916]
[1642906526441,0.00113684,2410.2,2409.5,0.00284212]
[1642906526643,1.19922094,2410.1,2409.5,0.00284212]
[1642906526842,1.85702094,2410.1,2409.5,0.00284212]
[1642906527246,0.6578,2410.1,2409.3,0.00397897]
[1642906527443,0.6578,2410.1,2409.5,1.30829174]
[1642906527648,0.01403269,2410.2,2409.5,1.30829174]
[1642906527649,0.00113684,2410.2,2409.5,1.30829174]
[1642906527843,0.00113684,2410.2,2409.6,0.0022737]
[1642906529294,0.00113684,2410.2,2410.1,1.24676331]
[1642906530595,0.00113684,2410.2,2410.1,3.29676331]
[1642906531897,0.00113684,2410.2,2410.1,1.24676331]
[1642906534946,0.00113684,2410.2,2409.6,5.2538737]
[1642906535147,0.00113684,2410.2,2409.6,5.0880737]
[1642906535345,0.00113684,2410.2,2409.7,0.00170528]
[1642906536147,0.00113684,2410.2,2409.6,1.24696963]
[1642906536348,0.00113684,2410.2,2409.6,1.24469593]
[1642906536549,0.00113684,2410.2,2409.7,0.00170528]
[1642906538392,1.39937279,2410.2,2409.7,0.00170528]
[1642906538592,0.6578,2410.1,2409.7,0.00170528]
[1642906538796,0.6578,2410.1,2409.3,0.00397897]
[1642906538994,1.03902,2409.9,2409.3,0.00397897]
[1642906539293,0.658,2409.8,2409.3,0.00397897]
[1642906540552,1.658,2409.8,2409.3,0.00397897]
[1642906540761,0.658,2409.8,2409.3,0.00397897]
[1642906540957,0.00113684,2410.2,2409.8,1.808]
[1642906543655,0.00113684,2410.2,2410.0,1.1548637]
[1642906546394,2.85,2409.9,2409.1,0.02]
[1642906546594,0.01214771,2409.2,2409.1,0.02]
[1642906546792,1.65,2409.1,2408.8,0.00474]
[1642906546992,1.74395747,2409.0,2408.8,0.00474]
[1642906547192,1.621,2409.0,2408.8,0.00474]
[1642906547392,1.621,2409.0,2408.9,1.54000406]
[1642906547591,1.571,2409.0,2408.9,1.54000406]
[1642906547796,0.09914,2409.5,2409.0,2.6]
[1642906548058,0.00284212,2409.8,2409.1,2.1555139]
[1642906548253,0.00284212,2409.8,2409.1,0.00113685]
[1642906548457,0.00227369,2409.7,2409.1,3.53205811]
[1642906548853,0.00170527,2409.6,2409.2,3.53205811]
[1642906549059,0.00170527,2409.6,2409.3,3.53205811]
[1642906549252,0.92577064,2410.6,2409.2,3.53205811]
[1642906549253,0.00113685,2409.5,2409.2,3.53205811]
[1642906549455,0.00113685,2409.5,2409.3,3.53205811]